fUSD/lending_fUSD_20240520
["ID","MTS","AMOUNT","RATE_DAILY","PERIOD"]
[327575306,1716240491594,-22512.76340914,0.00025,2]
[327575307,1716240546216,-793.53553652,0.00022498,2]
[327575308,1716240546240,-2004.25641899,0.00023748,2]
[327575309,1716240546264,-357.50566786,0.000245,2]
[327575310,1716240546286,-2000.0,0.00024537,2]
[327575311,1716240546308,-7500.0,0.000249,2]
[327575312,1716240546330,-172.70512923,0.000249,2]
[327575313,1716240546351,-5000.0,0.00024998,2]
[327575314,1716240546373,-6769.49926427,0.00024998,2]
[327575315,1716240546395,-9152.26459409,0.00024999,2]
[327575316,1716240546417,-2579.25799699,0.00024999,2]
[327575319,1716240626540,704.70365996,0.00017259,2]
[327575342,1716240632391,-300.0,0.000208,2]
[327575343,1716240632401,-1374.9,0.00023745,2]
[327575344,1716240632412,-629.35641899,0.00023745,2]
[327575345,1716240632422,-4903.114596,0.00023745,2]
[327575346,1716240632432,-5986.01593337,0.00023746,2]
[327575347,1716240632444,-783.4833309,0.00023746,2]
[327575348,1716240632454,-5000.0,0.00023747,2]
[327575349,1716240632465,-917.84489783,0.000249,2]
[327575350,1716240632475,-9152.26459409,0.0002499,2]
[327575351,1716240632484,-432.92304014,0.00024996,2]
[327575352,1716240632493,-8761.31646988,0.00025,2]
[327575353,1716240632505,-635.48954702,0.00025,2]
[327575354,1716240632517,-12428.0,0.00025,2]
[327575383,1716240638349,-3183.23268982,0.000249,2]
[327575384,1716240638361,-904.4,0.000249,2]
[327575385,1716240638373,-704.72867349,0.000249,2]
[327575386,1716240638384,-737.999996,0.000249,2]
[327575387,1716240638396,-3761.01542674,0.000249,2]
[327575388,1716240638406,-1108.25807326,0.000249,2]
[327575389,1716240638416,-6062.20212674,0.000249,2]
[327575390,1716240638426,-132079.79787321,0.00025,2]
[327575408,1716240641589,-1594.34990465,0.00025,2]
[327575409,1716240641601,-6364.39687151,0.00025,2]
[327575410,1716240641612,-530.421667,0.00025,2]
[327575411,1716240641624,-5400.0,0.00025,2]
[327575412,1716240641636,-2206.1555444,0.00025,2]
[327575413,1716240641647,-573.37954002,0.00025,2]
[327575414,1716240641854,-5607.95021391,0.00025,2]
[327575416,1716240641865,-31890.19706751,0.00025,2]
[327575417,1716240641876,-987.41607818,0.00025,2]
[327575453,1716240643496,-1226.99999763,0.00025,2]
[327575455,1716240643508,-1864.9929329,0.00025,2]
[327575457,1716240643519,-3452.6,0.00025,2]
[327575459,1716240643530,-1268.2984146,0.00025,2]
[327575461,1716240643545,-1204.17105637,0.00025,2]
[327575462,1716240643558,-130385.17735147,0.00025,2]
[327575464,1716240643570,-1248528.81936401,0.00025,2]
[327575465,1716240643580,-1271.64454444,0.00025,2]
[327575466,1716240643590,-224.21566957,0.00025,2]
[327575467,1716240643600,-1850.0,0.00025,2]
[327575468,1716240643610,-155.0,0.00025,2]
[327575469,1716240643620,-155.0,0.00025,2]
[327575470,1716240643629,-181.93951843,0.00025,2]
[327575471,1716240643639,-926.52234979,0.00025,2]
[327575472,1716240643648,-2000.0,0.00025,2]
[327575473,1716240643657,-200.0,0.00025,2]
[327575474,1716240643667,-200.0,0.00025,2]
[327575475,1716240643676,-200.15461029,0.00025,7]
[327575476,1716240643697,-1001.88,0.00025,2]
[327575477,1716240643707,-167.0,0.00025044,2]
[327575478,1716240643718,-161.28,0.00025087,2]
[327575479,1716240643727,-180.0,0.00025161,2]
[327575480,1716240643737,-499.99,0.00025161,2]
[327575481,1716240643747,-150.99,0.00025161,2]
[327575482,1716240643757,-986.0,0.00025205,3]
[327575483,1716240643767,-1565.2946698,0.00025214,2]
[327575484,1716240643776,-600.0,0.00025218,2]
[327575485,1716240643786,-2000.0,0.0002525,2]
[327575486,1716240643795,-200.0,0.0002525,2]
[327575487,1716240643805,-155.79145114,0.00025336,2]
[327575488,1716240643815,-253.27,0.00025372,2]
[327575489,1716240643824,-1882.99904087,0.00025503,2]
[327575491,1716240643834,-200.0,0.00025503,2]
[327575492,1716240643844,-520.0,0.00025647,2]
[327575493,1716240643853,-200.0,0.00025758,2]
[327575494,1716240643863,-186.9887225,0.00025763,2]
[327575495,1716240643873,-167.0,0.00025797,2]
[327575496,1716240643883,-155.79145114,0.00025856,2]
[327575497,1716240643892,-15070.91540632,0.00026,3]
[327575498,1716240643902,-200.0,0.00026015,2]
[327575499,1716240643911,-155.79145114,0.00026041,2]
[327575500,1716240643921,-155.79145114,0.00026206,2]
[327575501,1716240643931,-167.0,0.00026549,2]
[327575502,1716240643941,-9291.37678603,0.00026567,2]
[327575503,1716240643950,-4555.36978336,0.00026637,2]
[327575504,1716240643960,-201.537937,0.00026637,2]
[327575505,1716240643971,-199.20734,0.00026637,2]
[327575506,1716240643981,-157.052106,0.00026748,10]
[327575507,1716240643991,-1958.38135,0.0002689,2]
[327575508,1716240644001,-214.75,0.00026919,2]
[327575509,1716240644010,-1958.38134,0.0002692,2]
[327575510,1716240644020,-1958.38134,0.0002692,2]
[327575511,1716240644030,-158.43,0.00026921,2]
[327575512,1716240644040,-236.44,0.00026921,2]
[327575513,1716240644051,-1958.38134,0.0002693,2]
[327575514,1716240644060,-1958.38134,0.0002697,2]
[327575515,1716240644070,-789.86,0.00026986,2]
[327575516,1716240644080,-1198.64768723,0.00027,2]
[327575517,1716240644090,-1900.0,0.00027,2]
[327575518,1716240644100,-1958.38135,0.0002701,2]
[327575519,1716240644109,-917.84489776,0.00027043,2]
[327575520,1716240644120,-155.79145114,0.00027234,2]
[327575521,1716240644130,-804.75282659,0.0002739,2]
[327575522,1716240644139,-2000.0,0.000274,2]
[327575523,1716240644150,-1051.72963696,0.000274,2]
[327575524,1716240644159,-500.0,0.000274,2]
[327575525,1716240644169,-544.0,0.00027521,2]
[327575526,1716240644179,-295.75316548,0.00027638,2]
[327575528,1716240644188,-157.052106,0.00027748,14]
[327575530,1716240644198,-155.79145114,0.00027833,2]
[327575532,1716240644207,-600.0,0.0002802,2]
[327575534,1716240644218,-154.74831959,0.00028055,2]
[327575536,1716240644227,-253.27,0.00028111,2]
[327575538,1716240644237,-155.79145114,0.00028249,2]
[327575540,1716240644247,-155.79145114,0.00028277,2]
[327575542,1716240644256,-4555.36978336,0.00028374,2]
[327575544,1716240644266,-186.9887225,0.00028481,2]
[327575546,1716240644278,-520.0,0.00028497,2]
[327575548,1716240644288,-155.79145114,0.00028674,2]
[327575550,1716240644298,-157.052106,0.00028748,20]
[327575553,1716240644312,-150.5,0.0002897,15]
[327575555,1716240644323,-150.5,0.0002897,15]
[327575557,1716240644332,-150.5,0.0002898,15]
[327575559,1716240644342,-150.5,0.0002898,15]
[327575561,1716240644352,-262.0,0.0002898,15]
[327575563,1716240644364,-281.5,0.0002899,15]
[327575565,1716240644374,-150.5,0.0002899,15]
[327575567,1716240644383,-150.5,0.0002899,15]
[327575569,1716240644393,-150.5,0.0002899,15]
[327575571,1716240644403,-53046.64168003,0.00029,2]
[327575574,1716240644417,-3461.1084,0.00029,2]
[327575591,1716240644586,-451.5,0.00024999,2]
[327575594,1716240644599,-8700.76459409,0.00024999,2]
[327575596,1716240644609,-2831.23240608,0.00029,2]
[327575598,1716240644622,-658.35,0.00029,2]
[327575600,1716240644633,-1163.83850839,0.00029,2]
[327575603,1716240644645,-23442.37633644,0.00029,2]
[327575797,1716240646624,-2826.6702,0.00024999,2]
[327575799,1716240646635,-2173.3298,0.00024999,2]
[327575801,1716240646645,-707.53095493,0.00024999,2]
[327575803,1716240646654,-2004.25641899,0.00024999,2]
[327575805,1716240646663,-528.08298287,0.00024999,2]
[327575807,1716240646672,-432.92304014,0.00024999,2]
[327575809,1716240646681,-11471.61384155,0.00029,2]
[327575815,1716240646730,-2094.96846539,0.00029,2]
[327575817,1716240646741,-6902.8,0.00029,2]
[327575820,1716240646753,-1185.49436781,0.00029,2]
[327577848,1716240679887,157.8310162,0.00025,60]
[327577849,1716240691947,501.06608686,0.00017259,2]
[327577850,1716240694895,155.0,0.00017259,2]
[327577851,1716240700494,155.0,0.00017259,2]
[327577852,1716240719304,155.0,0.00017259,2]
[327577868,1716240770295,155.0,0.00017086,2]
[327577869,1716240782687,150.0,0.00019725,2]
[327577870,1716240786833,215.23,0.00013973,2]
[327577871,1716240787093,215.23,0.00020447,2]
[327577872,1716240824884,6942.53130951,0.00013,2]
[327577873,1716240824913,28837.92105633,0.00013,2]
[327577874,1716240824942,1817372.79103787,0.00013,2]
[327577876,1716240847327,51986.71039834,0.000118,2]
[327577877,1716240847355,87543.39256071,0.000118,2]
[327577878,1716240872417,1978.61138425,0.00015,10]
[327577879,1716240939433,9816.19929445,0.0001298,2]
[327577882,1716241032998,211084.538009,0.0001288,2]
[327577897,1716241747216,-156.78,0.0001855,2]
[327577898,1716241747239,-150.0,0.00019725,2]
[327577899,1716241747260,-934.9276,0.000198,2]
[327577900,1716241747282,-539.53467564,0.000198,2]
[327577901,1716241747303,-2162.05152436,0.000198,2]
[327577903,1716241755192,-8590.33490273,0.000198,2]
[327577904,1716241755212,-392.43718635,0.00019898,2]
[327577906,1716241755232,-1306.62286596,0.00019899,2]
[327577907,1716241755253,-41638.11404496,0.000199,3]
[327577910,1716241765150,-688.38367332,0.000198,2]
[327577911,1716241765172,-223989.59632668,0.000199,3]
[327577920,1716241800614,150.1,0.00013973,2]
[327577921,1716241833311,-306.86976915,0.000198,2]
[327577923,1716241833322,-32.17729272,0.00019899,2]
[327577926,1716241833333,-166.31699995,0.00019899,2]
[327577928,1716241833343,-3824.07352711,0.00019899,2]
[327577929,1716241833354,-415.11994531,0.00019899,2]
[327577930,1716241833363,-6393.22799159,0.000199,3]
[327577931,1716241833374,-4121.07153573,0.000199,3]
[327577932,1716241833385,-10781.89455129,0.000199,3]
[327577933,1716241833397,-13658.28963268,0.000199,3]
[327577934,1716241833409,-5615.33786295,0.000199,3]
[327577935,1716241833422,-261.15578167,0.000199,3]
[327577936,1716241833433,-3731.26025677,0.000199,3]
[327577937,1716241833449,-99890.36412402,0.000199,3]
[327577938,1716241833460,-430.0056,0.000199,3]
[327577939,1716241833471,-27654.54599672,0.000199,3]
[327577940,1716241833483,-2236.40774336,0.000199,3]
[327577941,1716241833494,-62228.46244704,0.000199,3]
[327577942,1716241833505,-1886.15611314,0.000199,3]
[327577943,1716241833516,-5250.21953415,0.000199,3]
[327577944,1716241833528,-1673.69726498,0.000199,3]
[327577945,1716241833539,-18689.70909248,0.000199,3]
[327577946,1716241833552,-547.43728168,0.000199,3]
[327577947,1716241833565,-558.15546194,0.000199,3]
[327577948,1716241833578,-1266.60175907,0.000199,3]
[327577949,1716241833589,-5611.57327231,0.000199,3]
[327577950,1716241833601,-1671.1711544,0.000199,3]
[327577951,1716241833612,-1507.079186,0.000199,3]
[327577952,1716241833624,-161841.88907992,0.000199,3]
[327577953,1716241833633,-706.18,0.000199,2]
[327577954,1716241833645,-8283.16,0.000199,2]
[327577955,1716241833658,-989.51460785,0.0002,2]
[327577956,1716241833668,-1382.72,0.0002,2]
[327577957,1716241833678,-666.44,0.00020335,2]
[327577958,1716241833688,-250.0,0.00020552,2]
[327577959,1716241833699,-150.1,0.00020807,2]
[327577961,1716241833709,-388.59,0.000209,2]
[327577963,1716241833718,-4903.114596,0.00021,2]
[327577965,1716241833729,-1750.0,0.00021,2]
[327577967,1716241833738,-717.73732659,0.00021,2]
[327577968,1716241833748,-500.0,0.00021294,2]
[327577970,1716241833757,-1000.0,0.0002138,2]
[327577972,1716241833766,-151.36,0.00021429,2]
[327577974,1716241833775,-200.0,0.00021483,2]
[327577976,1716241833784,-236.07,0.00021486,2]
[327577978,1716241833793,-474.3,0.00021502,2]
[327577979,1716241833803,-177.14,0.00021598,2]
[327577980,1716241833812,-160.3,0.0002169,2]
[327577981,1716241833821,-160.3,0.00021831,2]
[327577982,1716241833831,-156.78,0.00021858,2]
[327577983,1716241833840,-200.0,0.000219,7]
[327577984,1716241833849,-6769.49926427,0.000219,2]
[327577985,1716241833859,-338.3,0.00021918,2]
[327577986,1716241833868,-2000.0,0.00021918,2]
[327577987,1716241833878,-160.3,0.00021973,2]
[327577988,1716241833890,-172.49402661,0.00021995,2]
[327577989,1716241833901,-10752.38642703,0.00022033,2]
[327577990,1716241833911,-160.3,0.00022114,2]
[327577991,1716241833921,-160.3,0.00022255,2]
[327577992,1716241833931,-160.3,0.00022397,2]
[327577993,1716241833943,-300.0,0.00022398,2]
[327577994,1716241833953,-296.73263169,0.00022408,2]
[327577995,1716241833963,-155.33627281,0.00022498,2]
[327577996,1716241833972,-160.3,0.00022538,2]
[327577997,1716241833982,-154.02142538,0.00022625,2]
[327577998,1716241833991,-688.38367332,0.00022671,2]
[327577999,1716241834000,-160.3,0.00022679,2]
[327578000,1716241834010,-172.49402661,0.0002271,2]
[327578001,1716241834019,-172.49402661,0.0002279,2]
[327578002,1716241834028,-160.3,0.0002282,2]
[327578003,1716241834038,-5000.0,0.00023,2]
[327578004,1716241834047,-1800.0,0.00023,2]
[327578005,1716241834056,-666.44,0.00023075,2]
[327578006,1716241834066,-2004.25641899,0.000234,2]
[327578007,1716241834076,-2143.22623981,0.00023481,28]
[327578008,1716241834085,-152.8,0.0002354,2]
[327578009,1716241834094,-153.08402109,0.00023598,2]
[327578010,1716241834104,-157.052106,0.00023748,2]
[327578011,1716241834114,-155.10854059,0.0002377,2]
[327578012,1716241834123,-539.53467562,0.00023825,2]
[327578013,1716241834133,-500.0,0.000239,8]
[327578014,1716241834142,-171.47681867,0.00023935,2]
[327578015,1716241834152,-4301.78946725,0.00023935,2]
[327578016,1716241834161,-152.84540226,0.00023947,2]
[327578017,1716241834170,-432.92304014,0.00024,2]
[327578018,1716241834179,-55191.49124728,0.00024,3]
[327578019,1716241834191,-49347.91675046,0.00024,3]
[327578020,1716241834202,-7188.65391993,0.00024,3]
[327578021,1716241834588,-991.34183683,0.00024,3]
[327578022,1716241834600,-1501.57922295,0.00024,3]
[327578023,1716241834611,-919.26358847,0.00024,3]
[327578024,1716241834623,-903.55095595,0.00024,3]
[327578025,1716241834634,-518.40021227,0.00024,3]
[327578026,1716241834648,-761.75219466,0.00024,3]
[327578027,1716241834663,-927.54959168,0.00024,3]
[327578028,1716241834673,-1033.7,0.00024,3]
[327578029,1716241834684,-3705.32865351,0.00024,3]
[327578030,1716241834699,-408.75323981,0.00024,3]
[327578031,1716241834710,-1361.03592768,0.00024,3]
[327578032,1716241834721,-1387.2,0.00024,3]
[327578033,1716241834734,-455.94522447,0.00024,3]
[327578034,1716241834747,-1275.75232492,0.00024,3]
[327578039,1716241838906,-701.953689,0.00019701,2]
[327578041,1716241838915,-40976.47796115,0.00024,3]
[327578043,1716241838960,-15092.47187729,0.00024,3]
[327578044,1716241839492,-692.59,0.00024,3]
[327578046,1716241839504,-1427.69547832,0.00024,3]
[327578049,1716241839515,-1435.14043777,0.00024,3]
[327578053,1716241839555,-27061.14939622,0.00024,3]
[327578056,1716241839566,-60175.43000003,0.00024,3]
[327578062,1716241840928,-363.98568217,0.00024,3]
[327578114,1716241841417,-320.96907587,0.00024,3]
[327578115,1716241841429,-20261.95515799,0.00024,3]
[327578116,1716241841441,-1039.49523392,0.00024,3]
[327578117,1716241841454,-1073.74115961,0.00024,3]
[327578140,1716241841465,-4892.17678004,0.00024,3]
[327578145,1716241841704,-1016.40943417,0.00024,3]
[327578155,1716241843466,-32540.15000001,0.00024,3]
[327578156,1716241843478,-6001.84547503,0.00024,3]
[327578157,1716241843487,-153.08402109,0.00024016,2]
[327578158,1716241843498,-162.86481413,0.00024035,2]
[327578159,1716241843507,-570.57740384,0.00024052,2]
[327578160,1716241843519,-429.42259616,0.00024052,2]
[327578161,1716241843528,-180.0,0.0002423,2]
[327578163,1716241843538,-10752.38642703,0.00024267,2]
[327578165,1716241843547,-170.26137791,0.00024522,2]
[327578166,1716241843556,-250.0,0.00024658,2]
[327578168,1716241843566,-157.052106,0.00024748,2]
[327578169,1716241843575,-172.49402663,0.00024815,2]
[327578170,1716241843584,-155.25533383,0.00024898,2]
[327578171,1716241843594,-291.53456264,0.00024898,2]
[327578172,1716241843603,-200.0,0.00024898,2]
[327578173,1716241843612,-155.0,0.00024898,2]
[327578174,1716241843621,-317.32296445,0.00024898,2]
[327578175,1716241843630,-155.0,0.00024899,2]
[327578177,1716241843639,-9673.2176,0.000249,2]
[327578179,1716241843649,-58571.6822,0.000249,2]
[327578181,1716241843662,-245000.0,0.000249,2]
[327578183,1716241843671,-1000.0,0.000249,2]
[327578185,1716241843680,-1500.0,0.000249,2]
[327578187,1716241843689,-700.0,0.000249,9]
[327578189,1716241843699,-800.0,0.00024959,2]
[327578191,1716241843710,-9152.26459409,0.0002499,2]
[327578193,1716241843719,-155.0,0.00024996,2]
[327578194,1716241843727,-439.04838891,0.00024996,2]
[327578197,1716241843741,-3107.18938739,0.00024996,2]
[327578199,1716241843750,-303.83347949,0.00024996,2]
[327578201,1716241843759,-175.63613317,0.00024996,2]
[327578213,1716241843860,-4812.84077816,0.00024996,2]
[327578223,1716241843869,-710.94730096,0.00024997,2]
[327578230,1716241843878,-2221.82871026,0.00024998,7]
[327578238,1716241843887,-3089.44753044,0.00024998,2]
[327578244,1716241843896,-2597.95855666,0.00024998,2]
[327578306,1716241844458,-7316.18746697,0.00024998,2]
[327578308,1716241844473,-4043.23692891,0.00024998,2]
[327578310,1716241844485,-4193.24308443,0.00024998,2]
[327578312,1716241844499,-871.69023551,0.00024998,2]
[327578314,1716241844512,-2230.42433977,0.00024998,2]
[327578316,1716241844525,-10991.92846268,0.00024998,2]
[327578319,1716241844539,-10384.8,0.00024998,2]
[327578321,1716241844552,-1791.45712628,0.00024998,2]
[327578323,1716241844566,-94533.85099386,0.00024998,2]
[327578325,1716241844576,-235.75592062,0.00024998,2]
[327578327,1716241844587,-910.32345355,0.00024998,2]
[327578328,1716241844598,-284.14921513,0.00024998,2]
[327578329,1716241844608,-284.54699808,0.00024998,2]
[327578330,1716241844618,-195.16050448,0.00024998,2]
[327578331,1716241844629,-893.71353405,0.00024998,2]
[327578332,1716241844640,-208.25486787,0.00024998,2]
[327578333,1716241844658,-666.9861521,0.00024998,2]
[327578334,1716241844668,-156.69539022,0.00024998,2]
[327578335,1716241844679,-305.95729831,0.00024998,2]
[327578336,1716241844690,-155.58162898,0.00024998,2]
[327578337,1716241844701,-155.0,0.00024998,2]
[327578338,1716241844713,-444.17390699,0.00024998,2]
[327578339,1716241844723,-5560.28685864,0.00024998,2]
[327578340,1716241844735,-155.49951612,0.00024998,2]
[327578341,1716241844745,-155.0,0.00024998,2]
[327578342,1716241844755,-228.92674142,0.00024998,2]
[327578343,1716241844764,-529.20718459,0.00024998,2]
[327578344,1716241844774,-225152.94865795,0.00025,2]
[327578345,1716241844784,-1271.64454444,0.00025,2]
[327578346,1716241844793,-155.0,0.00025,2]
[327578347,1716241844803,-155.0,0.00025,2]
[327578348,1716241844813,-926.52234979,0.00025,2]
[327578349,1716241844822,-224.21566957,0.00025,2]
[327578350,1716241844838,-1850.0,0.00025,2]
[327578351,1716241844847,-1001.9,0.00025,2]
[327578352,1716241844857,-313.66,0.00025,2]
[327578353,1716241844867,-156.78,0.00025167,2]
[327578354,1716241844877,-688.38367332,0.00025543,2]
[327578355,1716241844886,-157.38762473,0.00025698,2]
[327578356,1716241844896,-157.052106,0.00025748,4]
[327578357,1716241844907,-4301.7894672,0.0002576,2]
[327578358,1716241844917,-666.44,0.00025815,2]
[327578359,1716241844927,-160.50893316,0.00025914,2]
[327578360,1716241844936,-988.0,0.00026027,2]
[327578361,1716241844946,-1003.5,0.0002614,2]
[327578363,1716241844957,-1198.64768723,0.00026206,2]
[327578365,1716241844967,-8628.3415475,0.000265,2]
[327578413,1716241846720,-432.92304014,0.00024,2]
[327578416,1716241846730,-499.99,0.00025698,2]
[327578420,1716241846740,-2124.04487953,0.000265,2]
[327578423,1716241846750,-1000.0,0.00026725,2]
[327578424,1716241846760,-157.052106,0.00026748,8]
[327578426,1716241846770,-213.19393066,0.00026921,2]
[327578428,1716241846782,-2.03606934,0.00026921,2]
[327578429,1716241846792,-455.51643206,0.00027,2]
[327578470,1716241847462,-585.22668101,0.00027,2]
[327578472,1716241847473,-859.25688693,0.00027,2]
[327578474,1716241847482,-155.10854059,0.00027132,2]
[327578476,1716241847492,-155.10854059,0.00027189,2]
[327578478,1716241847502,-166.66666668,0.00027343,2]
[327578480,1716241847512,-804.75282659,0.0002739,2]
[327578482,1716241847521,-988.0,0.00027397,4]
[327578484,1716241847531,-2815.16,0.00027397,10]
[327578486,1716241847540,-2800.03,0.00027397,10]
[327578488,1716241847549,-184.43062082,0.000274,2]
[327578490,1716241847559,-2839.20690228,0.000274,2]
[327578492,1716241847570,-497.24951852,0.000274,2]
[327578494,1716241847581,-831.152,0.000274,2]
[327578495,1716241847592,-650.36726603,0.000274,2]
[327578496,1716241847601,-172.88,0.000274,2]
[327578497,1716241847610,-1232.7091136,0.00027585,2]
[327578498,1716241847621,-3069.0803536,0.00027585,2]
[327578499,1716241847630,-150.1,0.00027641,2]
[327578500,1716241847640,-1500.0,0.000277,2]
[327578501,1716241847651,-167.31761538,0.00027725,2]
[327578502,1716241847661,-157.052106,0.00027748,10]
[327578503,1716241847673,-539.53467562,0.0002785,2]
[327578505,1716241847682,-155.79145119,0.00028049,2]
[327578507,1716241847691,-1400.0,0.00028063,2]
[327578509,1716241847701,-150.0,0.00028063,2]
[327578511,1716241847712,-150.0,0.00028063,2]
[327578513,1716241847722,-2185.84495628,0.00028232,2]
[327578515,1716241847731,-155.0,0.00028232,2]
[327578517,1716241847741,-1248.10825523,0.00028232,2]
[327578519,1716241847752,-316.07383662,0.00028232,2]
[327578521,1716241847763,-688.38367332,0.00028414,2]
[327578523,1716241847774,-156.78,0.00028476,2]
[327578525,1716241847784,-1565.2946698,0.00028567,2]
[327578527,1716241847793,-152.08538166,0.00028589,2]
[327578529,1716241847802,-10752.38642703,0.00028733,2]
[327578531,1716241847812,-157.052106,0.00028748,14]
[327578533,1716241847821,-988.0,0.00028767,6]
[327578535,1716241847830,-1000.0,0.00028768,15]
[327578537,1716241847840,-500.0,0.00028768,2]
[327578539,1716241847849,-155.7914512,0.00028927,2]
[327578541,1716241847858,-150.5,0.0002897,15]
[327578543,1716241847867,-150.0,0.00028971,2]
[327578545,1716241847877,-150.5,0.0002898,15]
[327578547,1716241847887,-197.5,0.0002898,15]
[327578549,1716241847896,-150.5,0.0002899,15]
[327578551,1716241847905,-150.5,0.0002899,15]
[327578553,1716241847914,-172.88,0.0002899,2]
[327578555,1716241847924,-383.41116736,0.00028998,2]
[327578557,1716241847934,-423.30398004,0.00028998,2]
[327578559,1716241847944,-207.32803127,0.00028998,2]
[327578561,1716241847953,-161.8535166,0.00028998,2]
[327578563,1716241847962,-262.98011562,0.00028998,2]
[327578565,1716241847972,-167.63437116,0.00028998,2]
[327578567,1716241847981,-162.41009931,0.00028998,2]
[327578569,1716241847990,-414.31523985,0.00028998,2]
[327578571,1716241848000,-404.77250217,0.00028998,2]
[327578573,1716241848009,-4393.04526747,0.00028999,2]
[327578575,1716241848019,-30238.05739713,0.00029,2]
[327578577,1716241848030,-415.7195867,0.00029,2]
[327578580,1716241848042,-51956.38423839,0.00029,2]
[327578597,1716241848210,-17774.38417679,0.00029,2]
[327578599,1716241848221,-163679.618349,0.00029,2]
[327578601,1716241848233,-1885.12773,0.00029,2]
[327578603,1716241848245,-3474.1344,0.00029,2]
[327579488,1716241932001,155.0,0.00027,90]
[327579492,1716242090045,175.59,0.00026129,120]
[327579493,1716242315353,189.1,0.00013973,2]
[327579498,1716242667316,177.14,0.00024842,120]
[327579503,1716242825144,-2826.12898161,0.00017255,2]
[327579504,1716242825167,-62.82867692,0.00017256,2]
[327579505,1716242839081,-375.06200846,0.00017256,2]
[327579506,1716242839199,18115.0,0.00027,120]
[327579511,1716242956104,-608.242,0.000198,2]
[327579512,1716242956125,-300.0,0.000198,2]
[327579513,1716242956146,-315.71228808,0.000199,2]
[327579517,1716242976462,1000.0,0.00020441,2]
[327579555,1716243033320,-153.37,0.00020706,2]
[327579556,1716243033330,-155.25271234,0.00021,2]
[327579557,1716243033341,-1000.0,0.00021109,2]
[327579558,1716243033350,-87.16328766,0.00021195,2]
[327579574,1716243033503,-255.32671234,0.00021195,2]
[327579576,1716243033514,-1322.85757354,0.000214,2]
[327579578,1716243033527,-4765.14242646,0.000214,2]
[327579580,1716243033537,-150.51320039,0.00021599,2]
[327579582,1716243033547,-150.51320039,0.00021644,2]
[327579583,1716243033558,-155.25271234,0.0002167,2]
[327579585,1716243033569,-155.10854058,0.00021957,2]
[327579587,1716243033580,-63.42991984,0.00022029,2]
[327579589,1716243033592,-2291.67756484,0.00022029,2]
[327579591,1716243033602,-819.045632,0.0002203,2]
[327579592,1716243033612,-150.51320039,0.00022141,2]
[327579594,1716243033623,-177.94446364,0.00022174,2]
[327579596,1716243033634,-155.10854058,0.00022191,2]
[327579598,1716243033644,-200.0,0.00022564,2]
[327579599,1716243033654,-1191.78936579,0.00022613,2]
[327579601,1716243033666,-153.08402109,0.00022614,2]
[327579603,1716243033676,-153.08402109,0.00022678,2]
[327579605,1716243033686,-1044.14,0.00022701,2]
[327579607,1716243033696,-166.66666665,0.00022868,2]
[327579608,1716243033706,-449.32617706,0.00023,2]
[327579610,1716243033719,-2418.1409,0.00023,2]
[327579630,1716243038228,-1492.0,0.00023,2]
[327579631,1716243038240,-640.53292294,0.00023,2]
[327579632,1716243038250,-155.10854058,0.00023116,2]
[327579633,1716243038260,-2004.25641899,0.000234,2]
[327579634,1716243038269,-640.54493347,0.00023502,28]
[327579635,1716243038281,-999.71263639,0.00023502,28]
[327579636,1716243038293,-169.84310618,0.00023502,28]
[327579637,1716243038303,-179.34189382,0.00024,2]
[327579638,1716243038666,-253.58114632,0.00024,2]
[327579642,1716243038675,-153.37,0.00024015,2]
[327579644,1716243038685,-155.10854058,0.00024165,2]
[327579646,1716243038694,-155.25271234,0.00024184,2]
[327579647,1716243038703,-79.48092435,0.00024471,2]
[327579654,1716243038759,-73.31907565,0.00024471,2]